fUSD/lending_fUSD_20250622
["ID","MTS","AMOUNT","RATE_DAILY","PERIOD"]
[367048189,1750636246910,-490.0,0.00035111,7]
[367048191,1750636246922,-958.8,0.00035111,7]
[367048193,1750636246931,-1203.42,0.00035111,7]
[367048195,1750636246941,-7143.13,0.00035111,7]
[367048197,1750636246952,-490.0,0.00035111,7]
[367048199,1750636246961,-503.97,0.00035111,7]
[367048200,1750636246970,-490.0,0.00035111,7]
[367048202,1750636246980,-495.49555877,0.00035111,7]
[367048204,1750636246989,-490.0,0.00035111,7]
[367048206,1750636246999,-490.0,0.00035111,7]
[367048208,1750636247008,-490.0,0.00035111,7]
[367048210,1750636247017,-490.0,0.00035111,7]
[367048212,1750636247026,-490.0,0.00035111,7]
[367048214,1750636247035,-650.13,0.00035111,7]
[367048216,1750636247044,-1364.96,0.00035111,7]
[367048218,1750636247053,-490.0,0.00035111,7]
[367048220,1750636247062,-490.0,0.00035111,7]
[367048222,1750636247073,-490.0,0.00035111,7]
[367048224,1750636247081,-490.0,0.00035111,7]
[367048226,1750636247091,-490.0,0.00035111,7]
[367048228,1750636247101,-490.0,0.00035111,7]
[367048230,1750636247111,-490.0,0.00035111,7]
[367048232,1750636247121,-1902.52,0.00035111,7]
[367048234,1750636247131,-1481.12,0.00035111,7]
[367048236,1750636247140,-981.67,0.00035111,7]
[367048238,1750636247150,-490.0,0.00035111,7]
[367048239,1750636247159,-490.0,0.00035111,7]
[367048241,1750636247169,-490.0,0.00035111,7]
[367048243,1750636247179,-1859.12,0.00035111,7]
[367048246,1750636247189,-754.28,0.00035111,7]
[367048247,1750636247198,-490.0,0.00035111,7]
[367048250,1750636247208,-1119.74,0.00035111,7]
[367048251,1750636247218,-1466.01,0.00035111,7]
[367048254,1750636247228,-2632.82,0.00035111,7]
[367048255,1750636247237,-490.0,0.00035111,7]
[367048257,1750636247246,-2107.63,0.00035111,7]
[367048259,1750636247255,-490.0,0.00035111,7]
[367048261,1750636247265,-490.0,0.00035111,7]
[367048263,1750636247275,-490.0,0.00035111,7]
[367048265,1750636247284,-1081.5,0.00035111,7]
[367048267,1750636247293,-490.0,0.00035111,7]
[367048269,1750636247303,-490.0,0.00035111,7]
[367048271,1750636247312,-2145.04,0.00035111,7]
[367048273,1750636247322,-490.0,0.00035111,7]
[367048275,1750636247332,-602.18,0.00035111,7]
[367048277,1750636247341,-490.0,0.00035111,7]
[367048279,1750636247350,-1094.17,0.00035111,7]
[367048281,1750636247360,-490.0,0.00035111,7]
[367048283,1750636247369,-490.0,0.00035111,7]
[367048285,1750636247379,-490.0,0.00035111,7]
[367048287,1750636247388,-9133.0,0.00035111,7]
[367048289,1750636247398,-490.0,0.00035111,7]
[367048291,1750636247408,-490.0,0.00035111,7]
[367048293,1750636247418,-490.0,0.00035111,7]
[367048295,1750636247428,-490.0,0.00035111,7]
[367048297,1750636247437,-490.0,0.00035111,7]
[367048299,1750636247447,-877.05,0.00035111,7]
[367048300,1750636247456,-490.0,0.00035111,7]
[367048302,1750636247466,-633.05,0.00035111,7]
[367048304,1750636247475,-490.0,0.00035111,7]
[367048306,1750636247486,-2021.77,0.00035111,7]
[367048308,1750636247495,-490.0,0.00035111,7]
[367048310,1750636247505,-490.0,0.00035111,7]
[367048312,1750636247515,-909.85,0.00035111,7]
[367048314,1750636247525,-490.0,0.00035111,7]
[367048316,1750636247534,-490.0,0.00035111,7]
[367048318,1750636247543,-490.0,0.00035111,7]
[367048320,1750636247552,-490.0,0.00035111,7]
[367048322,1750636247562,-824.87,0.00035111,7]
[367048324,1750636247572,-490.0,0.00035111,7]
[367048326,1750636247582,-490.0,0.00035111,7]
[367048328,1750636247592,-490.0,0.00035111,7]
[367048329,1750636247601,-490.0,0.00035111,7]
[367048331,1750636247611,-900.23,0.00035111,7]
[367048333,1750636247620,-490.0,0.00035111,7]
[367048335,1750636247630,-1757.73,0.00035111,7]
[367048337,1750636247640,-490.0,0.00035111,7]
[367048339,1750636247649,-490.0,0.00035111,7]
[367048341,1750636247658,-490.0,0.00035111,7]
[367048343,1750636247667,-490.0,0.00035111,7]
[367048345,1750636247676,-490.0,0.00035111,7]
[367048347,1750636247685,-1870.77,0.00035111,7]
[367048348,1750636247694,-490.0,0.00035111,7]
[367048350,1750636247704,-490.0,0.00035111,7]
[367048352,1750636247713,-490.0,0.00035111,7]
[367048354,1750636247723,-490.0,0.00035111,7]
[367048356,1750636247732,-490.0,0.00035111,7]
[367048358,1750636247741,-772.31,0.00035111,7]
[367048360,1750636247751,-490.0,0.00035111,7]
[367048362,1750636247761,-1839.61,0.00035111,7]
[367048364,1750636247770,-490.0,0.00035111,7]
[367048366,1750636247779,-1123.52,0.00035111,7]
[367048368,1750636247789,-490.0,0.00035111,7]
[367048370,1750636247798,-490.0,0.00035111,7]
[367048371,1750636247806,-490.0,0.00035111,7]
[367048373,1750636247816,-2071.35,0.00035111,7]
[367048375,1750636247826,-490.0,0.00035111,7]
[367048377,1750636247836,-490.0,0.00035111,7]
[367048379,1750636247845,-659.91,0.00035111,7]
[367048381,1750636247855,-13773.1,0.00035111,7]
[367048383,1750636247864,-490.0,0.00035111,7]
[367048385,1750636247874,-545.54,0.00035111,7]
[367048387,1750636247886,-490.0,0.00035111,7]
[367048389,1750636247895,-490.0,0.00035111,7]
[367048391,1750636247905,-490.0,0.00035111,7]
[367048393,1750636247915,-500.0,0.00035113,2]
[367048395,1750636247924,-1503.95,0.00035114,7]
[367048396,1750636247933,-490.0,0.00035114,7]
[367048398,1750636247942,-1758.85,0.00035114,7]
[367048400,1750636247951,-420.0,0.00035114,7]
[367048402,1750636247960,-490.0,0.00035114,7]
[367048404,1750636247970,-490.0,0.00035114,7]
[367048406,1750636247980,-407.64,0.00035114,7]
[367048408,1750636247989,-220.4703267,0.00035114,7]
[367048410,1750636247998,-681.06,0.00035114,7]
[367048412,1750636248007,-490.0,0.00035114,7]
[367048414,1750636248016,-490.0,0.00035114,7]
[367048416,1750636248025,-490.0,0.00035114,7]
[367048417,1750636248035,-490.0,0.00035114,7]
[367048419,1750636248044,-1960.82,0.00035114,7]
[367048421,1750636248053,-490.0,0.00035114,7]
[367048423,1750636248063,-690.31,0.00035114,7]
[367048425,1750636248073,-1859.7,0.00035114,7]
[367048427,1750636248082,-420.0,0.00035114,7]
[367048429,1750636248091,-490.0,0.00035114,7]
[367048431,1750636248100,-1638.58,0.00035114,7]
[367048433,1750636248109,-552.42,0.00035114,7]
[367048435,1750636248118,-6584.21,0.00035114,7]
[367048437,1750636248127,-490.0,0.00035114,7]
[367048439,1750636248137,-490.0,0.00035114,7]
[367048441,1750636248146,-1101.84,0.00035114,7]
[367048443,1750636248155,-490.0,0.00035114,7]
[367048445,1750636248164,-707.47,0.00035114,7]
[367048447,1750636248174,-2361.37,0.00035114,7]
[367048448,1750636248183,-490.0,0.00035114,7]
[367048450,1750636248192,-1659.37,0.00035114,7]
[367048452,1750636248201,-1923.72,0.00035114,7]
[367048454,1750636248211,-1610.24,0.00035114,7]
[367048456,1750636248220,-243.94293119,0.00035114,7]
[367048458,1750636248229,-1772.75,0.00035114,7]
[367048460,1750636248238,-490.0,0.00035114,7]
[367048462,1750636248248,-490.0,0.00035114,7]
[367048464,1750636248257,-1515.31,0.00035114,7]
[367048466,1750636248266,-588.26,0.00035114,7]
[367048468,1750636248276,-673.12,0.00035114,7]
[367048470,1750636248285,-1960.95,0.00035114,7]
[367048472,1750636248295,-1106.8,0.00035114,7]
[367048474,1750636248304,-2583.41,0.00035114,7]
[367048476,1750636248313,-490.0,0.00035114,7]
[367048478,1750636248323,-1426.29,0.00035114,7]
[367048479,1750636248332,-2892.29,0.00035114,7]
[367048481,1750636248341,-490.0,0.00035114,7]
[367048483,1750636248351,-337.95608619,0.00035114,7]
[367048485,1750636248360,-635.85936758,0.00035114,7]
[367048487,1750636248370,-490.0,0.00035114,7]
[367048489,1750636248380,-1812.2,0.00035114,7]
[367048491,1750636248389,-583.19,0.00035114,7]
[367048493,1750636248399,-808.45,0.00035114,7]
[367048495,1750636248408,-490.0,0.00035114,7]
[367048497,1750636248417,-280.0,0.00035114,7]
[367048499,1750636248426,-216.46358122,0.00035114,7]
[367048501,1750636248435,-3362.3,0.00035114,7]
[367048503,1750636248444,-799.19,0.00035114,7]
[367048505,1750636248454,-490.0,0.00035114,7]
[367048507,1750636248463,-1046.8,0.00035114,7]
[367048508,1750636248472,-2040.58,0.00035114,7]
[367048510,1750636248481,-1992.75,0.00035114,7]
[367048512,1750636248491,-1831.06,0.00035114,7]
[367048514,1750636248500,-4540.95,0.00035114,7]
[367048516,1750636248509,-4364.87,0.00035114,7]
[367048518,1750636248518,-909.44,0.00035114,7]
[367048520,1750636248527,-2654.17,0.00035114,7]
[367048522,1750636248537,-2202.23,0.00035114,7]
[367048524,1750636248546,-490.0,0.00035114,7]
[367048526,1750636248555,-1544.6,0.00035114,7]
[367048528,1750636248564,-490.0,0.00035114,7]
[367048530,1750636248574,-490.0,0.00035114,7]
[367048532,1750636248583,-490.0,0.00035114,7]
[367048534,1750636248592,-2217.17,0.00035114,7]
[367048536,1750636248602,-490.0,0.00035114,7]
[367048538,1750636248611,-1488.6,0.00035114,7]
[367048540,1750636248620,-491.69571438,0.00035114,7]
[367048541,1750636248630,-4609.97,0.00035114,7]
[367048543,1750636248639,-1928.26,0.00035114,7]
[367048545,1750636248649,-490.0,0.00035114,7]
[367048547,1750636248658,-450.0363826,0.00035114,7]
[367048549,1750636248667,-1460.29,0.00035114,7]
[367048551,1750636248676,-5957.89,0.00035114,7]
[367048553,1750636248686,-1570.33,0.00035114,7]
[367048555,1750636248696,-604.39,0.00035114,7]
[367048557,1750636248705,-490.0,0.00035114,2]
[367048559,1750636248714,-1320.9,0.00035114,7]
[367048561,1750636248723,-490.0,0.00035114,7]
[367048563,1750636248731,-506.22967389,0.00035114,7]
[367048565,1750636248741,-490.0,0.00035114,7]
[367048567,1750636248754,-290.0,0.00035114,7]
[367048569,1750636248763,-2235.48,0.00035114,7]
[367048571,1750636248772,-3013.29,0.00035114,7]
[367048573,1750636248781,-2005.74,0.00035115,7]
[367048575,1750636248790,-602.91,0.00035115,7]
[367048577,1750636248799,-695.86,0.00035115,7]
[367048579,1750636248808,-3418.4,0.00035115,7]
[367048581,1750636248817,-2079.41,0.00035115,7]
[367048582,1750636248827,-4293.19,0.00035115,7]
[367048585,1750636248836,-3222.63,0.00035115,2]
[367048586,1750636248846,-3664.46,0.00035115,7]
[367048588,1750636248854,-2175.46,0.00035115,7]
[367048590,1750636248865,-544.21,0.00035115,7]
[367048592,1750636248875,-1595.95,0.00035115,7]
[367048594,1750636248887,-778.91,0.00035115,7]
[367048596,1750636248896,-1168.79,0.00035115,7]
[367048598,1750636248906,-3413.39,0.00035115,7]
[367048600,1750636248915,-1319.02,0.00035115,7]
[367048602,1750636248926,-1683.76,0.00035115,7]
[367048604,1750636248935,-1665.92,0.00035115,7]
[367048606,1750636248945,-500.0,0.00035116,7]
[367048608,1750636248956,-3828.41,0.00035117,7]
[367048610,1750636248966,-2428.13,0.00035117,7]
[367048612,1750636248976,-2228.78,0.00035117,7]
[367048614,1750636248985,-2885.62,0.00035117,7]
[367048616,1750636248995,-490.0,0.00035117,7]
[367048618,1750636249004,-9182.38,0.00035117,7]
[367048620,1750636249014,-10742.06,0.00035117,7]
[367048622,1750636249023,-4219.53,0.00035117,7]
[367048624,1750636249032,-5916.66,0.00035117,7]
[367048625,1750636249042,-2866.9,0.00035117,7]
[367048627,1750636249051,-2709.38,0.00035117,7]
[367048629,1750636249060,-4864.93,0.00035117,7]
[367048631,1750636249070,-2285.76,0.00035117,7]
[367048633,1750636249079,-6392.71,0.00035117,7]
[367048635,1750636249089,-1912.24,0.00035117,7]
[367048637,1750636249099,-490.0,0.00035119,7]
[367048639,1750636249108,-490.0,0.00035119,7]
[367048641,1750636249117,-523.78,0.00035119,7]
[367048643,1750636249126,-2139.72,0.00035119,7]
[367048645,1750636249135,-490.0,0.00035119,7]
[367048647,1750636249144,-490.0,0.00035119,7]
[367048649,1750636249153,-1275.06,0.00035119,7]
[367048651,1750636249162,-490.0,0.00035119,7]
[367048653,1750636249172,-490.0,0.00035119,7]
[367048654,1750636249181,-490.0,0.00035119,7]
[367048656,1750636249190,-1654.84,0.00035119,7]
[367048658,1750636249199,-7113.52,0.00035119,7]
[367048660,1750636249209,-490.0,0.00035119,7]
[367048662,1750636249218,-490.0,0.00035119,7]
[367048664,1750636249227,-490.0,0.00035119,7]
[367048666,1750636249236,-501.65116269,0.00035119,7]
[367048668,1750636249245,-490.0,0.00035119,7]
[367048670,1750636249254,-490.0,0.00035119,7]
[367048672,1750636249263,-3248.47,0.00035119,7]
[367048674,1750636249272,-1151.0,0.00035119,7]
[367048676,1750636249281,-765.74,0.00035119,7]
[367048678,1750636249290,-746.42,0.00035119,7]
[367048680,1750636249299,-9786.13,0.00035119,7]
[367048682,1750636249308,-1392.59,0.00035119,7]
[367048684,1750636249317,-490.0,0.00035119,7]
[367048686,1750636249327,-2053.17,0.00035119,7]
[367048688,1750636249336,-1062.73,0.00035119,7]
[367048689,1750636249346,-2090.45,0.00035119,7]
[367048691,1750636249355,-490.0,0.00035119,7]
[367048693,1750636249364,-490.0,0.00035119,7]
[367048695,1750636249373,-992.36,0.00035119,7]
[367048697,1750636249383,-1016.78,0.00035119,7]
[367048699,1750636249392,-1525.67,0.00035119,7]
[367048701,1750636249401,-1886.92,0.00035119,7]
[367048703,1750636249410,-1272.24,0.00035119,7]
[367048705,1750636249419,-490.0,0.00035119,7]
[367048707,1750636249428,-1778.48,0.00035119,7]
[367048709,1750636249438,-2357.69,0.00035119,7]
[367048711,1750636249447,-2006.73,0.00035119,7]
[367048712,1750636249456,-1019.81,0.00035119,7]
[367048714,1750636249465,-880.25,0.00035119,7]
[367048716,1750636249475,-490.0,0.00035119,7]
[367048718,1750636249484,-490.0,0.00035119,7]
[367048720,1750636249493,-710.26,0.00035119,7]
[367048722,1750636249502,-18862.37,0.00035119,7]
[367048724,1750636249511,-490.0,0.00035119,7]
[367048726,1750636249521,-490.0,0.00035119,7]
[367048728,1750636249530,-559.85,0.00035119,7]
[367048730,1750636249539,-1645.96,0.00035119,7]
[367048732,1750636249548,-1360.87,0.00035119,7]
[367048734,1750636249558,-490.0,0.00035119,7]
[367048736,1750636249567,-490.0,0.00035119,7]
[367048738,1750636249577,-5453.44,0.00035119,7]
[367048740,1750636249586,-490.0,0.00035119,7]
[367048742,1750636249595,-2167.55,0.00035119,7]
[367048743,1750636249604,-3437.59,0.00035119,7]
[367048745,1750636249613,-490.0,0.00035119,7]
[367048747,1750636249622,-490.0,0.00035119,7]
[367048749,1750636249631,-490.0,0.00035119,7]
[367048751,1750636249641,-490.0,0.00035119,7]
[367048753,1750636249650,-2721.25,0.00035119,7]
[367048755,1750636249659,-7732.65,0.00035119,7]
[367048757,1750636249669,-1851.47,0.00035119,7]
[367048759,1750636249679,-1372.36,0.00035119,7]
[367048761,1750636249688,-490.0,0.00035119,7]
[367048763,1750636249698,-490.0,0.00035119,7]
[367048765,1750636249707,-588.0,0.00035119,7]
[367048767,1750636249716,-603.85,0.00035119,7]
[367048769,1750636249727,-490.0,0.00035119,7]
[367048770,1750636249735,-210.0,0.00035119,7]
[367048772,1750636249744,-1229.95,0.00035119,7]
[367048774,1750636249756,-490.0,0.00035119,7]
[367048775,1750636249765,-490.0,0.00035119,7]
[367048776,1750636249774,-490.0,0.00035119,7]
[367048777,1750636249782,-490.0,0.00035119,7]
[367048778,1750636249791,-490.0,0.00035119,7]
[367048779,1750636249800,-1904.42,0.00035119,7]
[367048780,1750636249810,-490.0,0.00035119,7]
[367048781,1750636249819,-490.0,0.00035119,7]
[367048782,1750636249828,-490.0,0.00035119,7]
[367048783,1750636249838,-490.0,0.00035119,7]
[367048784,1750636249847,-944.26,0.00035119,7]
[367048785,1750636249856,-490.0,0.00035119,7]
[367048786,1750636249865,-490.0,0.00035119,7]
[367048787,1750636249875,-490.0,0.00035119,7]
[367048788,1750636249886,-1911.53,0.00035119,7]
[367048789,1750636249895,-2289.07,0.00035119,7]
[367048790,1750636249905,-675.31,0.00035119,7]
[367048791,1750636249914,-490.0,0.00035119,7]
[367048792,1750636249925,-490.0,0.00035119,7]
[367048793,1750636249934,-490.0,0.00035119,7]
[367048795,1750636249943,-490.0,0.00035119,7]
[367048797,1750636249953,-490.0,0.00035119,7]
[367048799,1750636249964,-2714.75,0.00035119,7]
[367048801,1750636249973,-935.77,0.00035119,7]
[367048803,1750636249983,-2327.13,0.00035119,7]
[367048805,1750636249993,-490.0,0.00035119,7]
[367048807,1750636250003,-589.82,0.00035119,7]
[367048809,1750636250012,-822.27,0.00035119,7]
[367048811,1750636250021,-2778.3,0.00035119,7]
[367048813,1750636250031,-490.0,0.00035119,7]
[367048815,1750636250042,-490.0,0.00035119,7]
[367048817,1750636250051,-840.98,0.00035119,7]
[367048819,1750636250060,-490.0,0.00035119,7]
[367048821,1750636250069,-490.0,0.00035119,7]
[367048823,1750636250078,-2170.92,0.00035119,7]
[367048825,1750636250087,-490.0,0.00035119,7]
[367048827,1750636250096,-1855.41,0.00035119,7]
[367048829,1750636250106,-490.0,0.00035119,7]
[367048831,1750636250115,-802.1,0.00035119,7]
[367048833,1750636250125,-588.46,0.00035119,7]
[367048835,1750636250134,-984.7,0.00035119,7]
[367048837,1750636250143,-490.0,0.00035119,7]
[367048839,1750636250152,-490.0,0.00035119,7]
[367048841,1750636250161,-490.0,0.00035119,7]
[367048843,1750636250171,-490.0,0.00035119,7]
[367048845,1750636250180,-490.0,0.00035119,7]
[367048847,1750636250189,-2066.52,0.00035119,7]
[367048849,1750636250199,-490.0,0.00035119,7]
[367048851,1750636250208,-885.5,0.00035119,7]
[367048853,1750636250218,-490.0,0.00035119,7]
[367048855,1750636250228,-570.87,0.00035119,7]
[367048857,1750636250237,-490.0,0.00035119,7]
[367048859,1750636250246,-490.0,0.00035119,7]
[367048861,1750636250256,-1285.26,0.00035119,7]
[367048863,1750636250265,-982.32,0.00035119,7]
[367048865,1750636250274,-490.0,0.00035119,7]
[367048867,1750636250283,-490.0,0.00035119,7]
[367048869,1750636250292,-490.0,0.00035119,7]
[367048871,1750636250306,-1045.04,0.00035119,7]
[367048873,1750636250315,-490.0,0.00035119,7]
[367048875,1750636250325,-490.0,0.00035119,7]
[367048877,1750636250335,-490.0,0.00035119,7]
[367048879,1750636250344,-490.0,0.00035119,7]
[367048881,1750636250354,-490.0,0.00035119,7]
[367048883,1750636250364,-490.0,0.00035119,7]
[367048885,1750636250374,-1029.41,0.00035119,7]
[367048887,1750636250383,-490.0,0.00035119,7]
[367048889,1750636250394,-490.0,0.00035119,7]
[367048891,1750636250404,-490.0,0.00035119,7]
[367048893,1750636250413,-688.35,0.00035119,7]
[367048895,1750636250422,-1000.0,0.00035134,120]
[367048897,1750636250431,-24566.9577532,0.00035151,2]
[367048899,1750636250440,-19442.3244192,0.00035151,2]
[367048901,1750636250449,-203.0,0.00035151,5]
[367048902,1750636250458,-500.0,0.0003516,2]
[367048904,1750636250467,-539.2,0.00035161,7]
[367048906,1750636250477,-1070.67,0.00035161,7]
[367048909,1750636250486,-490.0,0.00035161,7]
[367048910,1750636250495,-1979.19,0.00035161,7]
[367048913,1750636250505,-1109.66,0.00035161,7]
[367048914,1750636250514,-971.99,0.00035161,7]
[367048916,1750636250523,-1635.71,0.00035161,7]
[367048918,1750636250533,-1745.47,0.00035161,7]
[367048920,1750636250542,-490.0,0.00035161,7]
[367048922,1750636250552,-598.94,0.00035161,7]
[367048924,1750636250562,-1970.2,0.00035161,7]
[367048926,1750636250571,-1980.0,0.00035161,7]
[367048928,1750636250580,-3259.94,0.00035161,7]
[367048930,1750636250589,-778.22,0.00035161,7]
[367048932,1750636250599,-1000.0,0.00035161,120]
[367048934,1750636250607,-1581.18,0.00035161,7]
[367048936,1750636250618,-2157.88,0.00035161,7]
[367048938,1750636250628,-1954.69,0.00035161,7]
[367048940,1750636250637,-490.0,0.00035161,7]
[367048942,1750636250646,-2975.19,0.00035161,7]
[367048944,1750636250656,-1727.05,0.00035161,7]
[367048946,1750636250665,-338.0617078,0.00035161,7]
[367048948,1750636250674,-1024.33,0.00035161,7]
[367048950,1750636250684,-490.0,0.00035161,7]
[367048952,1750636250694,-300.0,0.00035161,7]
[367048954,1750636250703,-1751.56,0.00035161,7]
[367048956,1750636250712,-2015.05,0.00035161,7]
[367048958,1750636250722,-490.0,0.00035161,7]
[367048960,1750636250732,-1079.51,0.00035161,7]
[367048962,1750636250742,-894.94,0.00035161,7]
[367048964,1750636250751,-1374.63,0.00035161,7]
[367048966,1750636250761,-512.55,0.00035161,7]
[367048968,1750636250771,-2636.92,0.00035161,7]
[367048970,1750636250780,-2628.06,0.00035161,7]
[367048972,1750636250790,-1398.73,0.00035161,7]
[367048973,1750636250799,-490.0,0.00035161,7]
[367048974,1750636250808,-1526.53,0.00035161,7]
[367048975,1750636250818,-1884.22,0.00035161,7]
[367048976,1750636250828,-490.0,0.00035161,7]
[367048977,1750636250837,-1898.03,0.00035161,7]
[367048978,1750636250847,-1888.55,0.00035161,7]
[367048979,1750636250857,-416.46515634,0.00035161,7]
[367048980,1750636250866,-19442.3244192,0.00035163,2]
[367048981,1750636250880,-24566.9577532,0.00035164,2]
[367048982,1750636251002,-19442.3244192,0.00035164,2]
[367048983,1750636251012,-501.83970786,0.00035173,5]
[367048984,1750636251022,-490.0,0.00035173,7]
[367048985,1750636251032,-842.28,0.00035173,7]
[367048986,1750636251042,-490.0,0.00035173,7]
[367048987,1750636251051,-490.0,0.00035173,7]
[367048988,1750636251060,-530.74,0.00035173,7]
[367048989,1750636251070,-681.22,0.00035173,7]
[367048990,1750636251080,-490.0,0.00035173,7]
[367048991,1750636251090,-490.0,0.00035173,7]
[367048992,1750636251099,-795.56,0.00035173,7]
[367048993,1750636251108,-490.0,0.00035173,7]
[367048994,1750636251118,-490.0,0.00035173,7]
[367048995,1750636251127,-490.0,0.00035173,7]
[367048996,1750636251136,-607.53,0.00035173,7]
[367048997,1750636251146,-490.0,0.00035173,7]
[367048999,1750636251158,-538.6,0.00035173,7]
[367049001,1750636251171,-1570.65,0.00035173,7]
[367049002,1750636251181,-490.0,0.00035173,7]
[367049003,1750636251190,-518.42648687,0.00035173,7]
[367049004,1750636251200,-1528.04,0.00035173,7]
[367049005,1750636251210,-490.0,0.00035173,7]
[367049006,1750636251219,-490.0,0.00035173,7]
[367049007,1750636251228,-490.0,0.00035173,7]
[367049008,1750636251244,-490.0,0.00035173,7]
[367049009,1750636251259,-490.0,0.00035173,7]
[367049010,1750636251270,-1021.82,0.00035173,7]
[367049011,1750636251281,-794.07,0.00035173,7]
[367049012,1750636251290,-490.0,0.00035173,7]
[367049013,1750636251300,-490.0,0.00035173,7]
[367049014,1750636251310,-490.0,0.00035173,7]
[367049015,1750636251320,-490.0,0.00035173,7]
[367049016,1750636251331,-672.51,0.00035173,7]
[367049017,1750636251340,-490.0,0.00035173,7]
[367049018,1750636251349,-496.72339324,0.00035173,7]
[367049019,1750636251359,-490.0,0.00035173,7]
[367049020,1750636251368,-931.16,0.00035173,7]
[367049021,1750636251378,-490.0,0.00035173,7]
[367049022,1750636251388,-490.0,0.00035173,7]
[367049023,1750636251398,-490.0,0.00035173,7]
[367049024,1750636251408,-490.0,0.00035173,7]
[367049025,1750636251418,-637.76551582,0.00035173,7]
[367049026,1750636251427,-756.67,0.00035173,7]
[367049027,1750636251438,-490.0,0.00035173,7]
[367049028,1750636251447,-490.0,0.00035173,7]
[367049029,1750636251456,-490.0,0.00035173,7]
[367049030,1750636251465,-490.0,0.00035173,7]
[367049031,1750636251475,-490.0,0.00035173,7]
[367049032,1750636251484,-499.0125509,0.00035173,7]
[367049033,1750636251493,-490.0,0.00035173,7]
[367049034,1750636251503,-490.0,0.00035173,7]
[367049035,1750636251513,-1126.04,0.00035174,7]
[367049036,1750636251522,-1760.99,0.00035174,7]
[367049037,1750636251532,-1925.1,0.00035174,7]
[367049038,1750636251542,-34567.33,0.00035174,7]
[367049039,1750636251551,-5571.07,0.00035174,7]
[367049040,1750636251561,-2214.53,0.00035174,7]
[367049041,1750636251570,-1914.35,0.00035174,7]
[367049042,1750636251580,-3913.66,0.00035174,7]
[367049043,1750636251589,-8136.12,0.00035174,7]
[367049044,1750636251599,-1413.97,0.00035174,7]
[367049045,1750636251608,-490.0,0.00035174,7]
[367049046,1750636251617,-913.83,0.00035174,7]
[367049047,1750636251627,-11370.36,0.00035174,7]
[367049048,1750636251636,-2423.76,0.00035174,7]
[367049049,1750636251645,-490.0,0.00035174,7]
[367049050,1750636251654,-1986.77,0.00035174,7]
[367049051,1750636251663,-1705.07,0.00035174,7]
[367049052,1750636251673,-17135.56,0.00035174,7]
[367049053,1750636251682,-2081.38,0.00035174,7]
[367049054,1750636251692,-1000.0,0.00035189,120]
[367049055,1750636251701,-10727.14,0.000352,8]
[367049056,1750636251711,-3937.01460476,0.00035205,2]
[367049057,1750636251721,-1000.0,0.00035216,120]
[367049058,1750636251731,-1055.17,0.00035219,7]
[367049059,1750636251741,-520.74,0.00035219,7]
[367049060,1750636251751,-1076.37,0.00035219,7]
[367049061,1750636251760,-1514.78,0.00035219,7]
[367049062,1750636251769,-1423.28,0.00035219,7]